bitfinex-derivatives/quotes_BTCF0:USTF0_20241218
["timestamp","ask_amount","ask_price","bid_price","bid_amount"]
[1734490102238,0.05693069,105370.0,105360.0,0.4256]
[1734490102633,0.01884056,105370.0,105360.0,0.4256]
[1734490106639,0.01884056,105370.0,105360.0,0.0648]
[1734490107039,0.01884056,105370.0,105360.0,0.4256]
[1734490109443,0.01884056,105370.0,105360.0,0.4261]
[1734490109749,0.00936387,105370.0,105360.0,0.473555]
[1734490109951,0.11028027,105380.0,105360.0,0.473555]
[1734490110149,0.11028027,105380.0,105370.0,0.032]
[1734490111148,0.07231823,105380.0,105370.0,0.44025]
[1734490111643,0.00948796,105380.0,105370.0,0.44025]
[1734490111846,0.019075,105390.0,105380.0,0.047446]
[1734490112042,0.019075,105390.0,105380.0,0.438746]
[1734490112641,7.574e-05,105390.0,105380.0,0.438746]
[1734490115048,7.574e-05,105390.0,105380.0,0.471146]
[1734490117741,7.574e-05,105390.0,105380.0,0.53397627]
[1734490117946,7.574e-05,105390.0,105380.0,0.83397627]
[1734490119346,7.574e-05,105390.0,105380.0,0.53397627]
[1734490119850,7.574e-05,105390.0,105380.0,0.54397627]
[1734490121055,7.574e-05,105390.0,105380.0,0.481146]
[1734490122157,7.574e-05,105390.0,105380.0,0.734146]
[1734490125155,7.574e-05,105390.0,105380.0,0.79697627]
[1734490126659,7.574e-05,105390.0,105380.0,0.734146]
[1734490133761,0.06290601,105390.0,105380.0,0.703646]
[1734490133958,7.574e-05,105390.0,105380.0,0.703646]
[1734490134158,7.574e-05,105390.0,105380.0,0.450646]
[1734490134652,0.06290601,105390.0,105380.0,0.3708]
[1734490134852,0.14294601,105390.0,105380.0,0.3708]
[1734490135070,0.17474601,105390.0,105380.0,0.3708]
[1734490135261,0.11191574,105390.0,105380.0,0.3708]
[1734490135458,0.11191574,105390.0,105380.0,0.01]
[1734490135968,0.17474601,105390.0,105380.0,0.01]
[1734490139465,0.03267574,105390.0,105380.0,0.418245]
[1734490140366,7.574e-05,105390.0,105380.0,0.481645]
[1734490141160,7.574e-05,105390.0,105360.0,0.253]
[1734490141462,0.36087574,105390.0,105380.0,0.01]
[1734490141665,0.39297574,105390.0,105380.0,0.01]
[1734490142374,0.39297574,105390.0,105380.0,0.057445]
[1734490142575,0.39297574,105390.0,105380.0,0.047445]
[1734490143173,0.36087574,105390.0,105380.0,0.047445]
[1734490143971,7.574e-05,105390.0,105380.0,0.047445]
[1734490144274,0.36087574,105390.0,105380.0,0.047445]
[1734490144967,7.574e-05,105390.0,105380.0,0.047445]
[1734490153169,0.36087574,105390.0,105350.0,0.3608]
[1734490153478,0.3608,105370.0,105360.0,0.11028427]
[1734490153669,0.3608,105370.0,105360.0,0.11078427]
[1734490153869,0.3608,105370.0,105360.0,0.41078427]
[1734490154075,0.3608,105370.0,105360.0,0.47361454]
[1734490154471,0.3608,105370.0,105360.0,0.41078427]
[1734490154777,0.3608,105370.0,105360.0,0.41028427]
[1734490155575,0.3608,105370.0,105360.0,0.43018583]
[1734490156275,0.3608,105370.0,105360.0,0.52218583]
[1734490156775,0.36087574,105390.0,105370.0,0.047449]
[1734490156776,0.3608,105380.0,105370.0,0.047449]
[1734490156981,0.3608,105380.0,105370.0,0.11027927]
[1734490158181,0.3608,105380.0,105370.0,0.08867967]
[1734490162482,0.3608,105380.0,105370.0,0.047449]
[1734490162782,0.3608,105380.0,105370.0,0.08867967]
[1734490163476,0.4005869,105380.0,105370.0,0.047449]
[1734490163682,0.43810123,105380.0,105370.0,0.047449]
[1734490163979,0.047452,105370.0,105360.0,0.047454]
[1734490164173,0.51478267,105370.0,105350.0,0.0005]
[1734490164485,0.48208467,105360.0,105350.0,0.047957]
[1734490164688,0.48208467,105360.0,105350.0,0.047457]
[1734490164977,0.440854,105360.0,105350.0,0.047457]
[1734490165685,0.440854,105360.0,105350.0,0.047957]
[1734490166573,0.3934,105360.0,105350.0,0.047457]
[1734490167683,0.3934,105360.0,105350.0,0.047957]
[1734490168578,0.3934,105360.0,105350.0,0.047457]
[1734490169584,0.3934,105360.0,105350.0,0.047957]
[1734490169987,0.440854,105360.0,105350.0,0.047957]
[1734490170876,0.3934,105360.0,105350.0,0.047957]
[1734490171382,0.40793607,105360.0,105350.0,0.047957]
[1734490171683,0.40793607,105360.0,105350.0,0.047457]
[1734490175979,0.3934,105360.0,105350.0,0.11032368]
[1734490176184,0.3608,105360.0,105350.0,0.047457]
[1734490176384,0.3608,105360.0,105350.0,0.077857]
[1734490180390,0.3608,105360.0,105350.0,0.44072368]
[1734490180579,0.3608,105360.0,105350.0,0.17402368]
[1734490182686,0.3608,105360.0,105350.0,0.47402368]
[1734490182883,0.3608,105360.0,105350.0,0.4829158]
[1734490182884,0.26477089,105360.0,105350.0,0.4829158]
[1734490183087,0.26477089,105360.0,105350.0,0.47402368]
[1734490188093,0.26477089,105360.0,105350.0,0.45240013]
[1734490189200,0.3928,105370.0,105360.0,0.047454]
[1734490189394,0.3928,105370.0,105360.0,0.08869713]
[1734490190196,0.3928,105370.0,105360.0,0.047454]
[1734490190399,0.43404313,105370.0,105360.0,0.047454]
[1734490190602,0.46414313,105370.0,105360.0,0.047454]
[1734490192502,0.51159213,105370.0,105360.0,0.047454]
[1734490193497,0.46414313,105370.0,105360.0,0.047454]
[1734490200110,0.4229,105370.0,105360.0,0.047454]
[1734490200898,0.4229,105370.0,105350.0,0.047457]
[1734490200899,0.51159613,105370.0,105350.0,0.047457]
[1734490201098,0.43294313,105360.0,105350.0,0.047457]
[1734490201906,0.52164226,105360.0,105320.0,1.037955]
[1734490202200,0.3608,105330.0,105320.0,0.13547324]
[1734490202396,0.3608,105330.0,105320.0,0.32481538]
[1734490202600,0.3608,105330.0,105320.0,0.15025438]
[1734490203301,0.29557657,105330.0,105320.0,0.15025438]
[1734490203502,0.21849434,105330.0,105320.0,0.77265255]
[1734490203707,0.16631557,105330.0,105320.0,0.10901125]
[1734490204007,0.16631557,105330.0,105320.0,0.19149751]
[1734490204310,0.3608,105340.0,105320.0,0.19149751]
[1734490204311,0.3608,105340.0,105320.0,0.15025438]
[1734490204607,0.3608,105340.0,105330.0,0.66985033]
[1734490204811,0.3608,105340.0,105330.0,0.047471]
[1734490205008,0.3608,105340.0,105330.0,0.08871413]
[1734490205202,0.4228,105350.0,105340.0,0.047466]
[1734490205512,0.4228,105350.0,105340.0,0.08870913]
[1734490206107,0.4228,105350.0,105340.0,0.047466]
[1734490206704,0.4228,105350.0,105340.0,0.08870913]
[1734490209918,0.4228,105350.0,105340.0,0.10731778]
[1734490210411,0.46404313,105350.0,105340.0,0.06607465]
[1734490212719,0.46404313,105350.0,105340.0,0.047466]
[1734490216224,0.4228,105350.0,105340.0,0.047466]
[1734490217718,0.46404313,105350.0,105340.0,0.047466]
[1734490218718,0.4228,105350.0,105340.0,0.047466]
[1734490218921,0.46404313,105350.0,105340.0,0.047466]
[1734490227814,0.4228,105350.0,105340.0,0.047466]
[1734490228016,0.46404313,105350.0,105340.0,0.047466]
[1734490229127,0.4228,105350.0,105340.0,0.047466]
[1734490229311,0.4228,105350.0,105340.0,0.08870913]
[1734490229517,0.4228,105350.0,105340.0,0.047466]
[1734490229919,0.391,105350.0,105340.0,0.08870913]
[1734490230122,0.3608,105350.0,105340.0,0.11950913]
[1734490230426,0.3608,105360.0,105350.0,0.047461]
[1734490230618,0.3608,105360.0,105350.0,0.12050413]
[1734490230927,0.3942,105370.0,105360.0,0.047457]
[1734490231124,0.3613,105370.0,105360.0,0.047457]
[1734490231318,0.3613,105370.0,105360.0,0.078257]
[1734490231832,0.3608,105370.0,105360.0,0.078257]
[1734490232729,0.3613,105370.0,105360.0,0.078257]
[1734490233720,0.3608,105370.0,105350.0,0.090218]
[1734490234124,0.3608,105370.0,105360.0,0.047457]
[1734490234839,0.3613,105370.0,105360.0,0.047457]
[1734490235222,0.4245,105370.0,105360.0,0.047457]
[1734490235427,0.48735284,105370.0,105360.0,0.047457]
[1734490235627,0.53480484,105370.0,105360.0,0.047457]
[1734490235828,0.471952,105370.0,105360.0,0.047457]
[1734490239735,0.471452,105370.0,105360.0,0.047457]
[1734490241230,0.424,105370.0,105360.0,0.047457]
[1734490243033,0.53430484,105370.0,105360.0,0.047457]
[1734490246033,0.471452,105370.0,105360.0,0.047457]
[1734490247535,0.53430484,105370.0,105360.0,0.047457]
[1734490249135,0.53430484,105370.0,105350.0,0.04746]
[1734490249342,0.3932,105360.0,105350.0,0.04746]
[1734490249646,0.45605284,105360.0,105350.0,0.04746]
[1734490251140,0.3932,105360.0,105350.0,0.04746]
[1734490251342,0.440657,105360.0,105350.0,0.04746]
[1734490251943,0.5231862,105360.0,105330.0,0.1371646]
[1734490252148,0.0738646,105350.0,105340.0,0.047464]
[1734490252445,0.4670646,105350.0,105340.0,0.047464]
[1734490252841,0.4258,105350.0,105340.0,0.047464]
[1734490253048,0.4670646,105350.0,105340.0,0.047464]
[1734490253451,0.4258,105350.0,105340.0,0.047464]
[1734490256243,0.473261,105350.0,105340.0,0.047464]
[1734490257452,0.5145256,105350.0,105340.0,0.047464]
[1734490259558,0.3934,105350.0,105340.0,0.0887286]
[1734490261853,0.3608,105350.0,105340.0,0.0887286]
[1734490262650,0.3608,105350.0,105340.0,0.047464]
[1734490262857,0.3608,105350.0,105340.0,0.0887286]
[1734490264056,0.3608,105350.0,105340.0,0.1299932]
[1734490264241,0.3608,105350.0,105340.0,0.1921932]
[1734490264648,0.3608,105360.0,105350.0,0.047461]
[1734490264852,0.3608,105360.0,105350.0,0.0887256]
[1734490265049,0.3608,105360.0,105350.0,0.1189256]
[1734490267052,0.3608,105360.0,105350.0,0.077661]
[1734490267259,0.3608,105360.0,105350.0,0.1189256]
[1734490268252,0.3608,105360.0,105350.0,0.077661]
[1734490268461,0.3608,105360.0,105350.0,0.1189256]
[1734490268662,0.3608,105360.0,105350.0,0.077661]
[1734490268863,0.3608,105360.0,105350.0,0.1189256]
[1734490269556,0.3608,105360.0,105350.0,0.077661]
[1734490271668,0.3608,105360.0,105350.0,0.047461]
[1734490272166,0.393,105360.0,105350.0,0.047461]
[1734490273175,0.4342646,105360.0,105350.0,0.047461]
[1734490273393,0.5532862,105360.0,105350.0,0.047461]
[1734490274390,0.047461,105350.0,105340.0,0.047465]
[1734490274686,0.4811256,105350.0,105340.0,0.047465]
[1734490277191,0.49614957,105350.0,105340.0,0.047465]
[1734490278601,0.047466,105340.0,105330.0,0.0005]
[1734490278796,0.5544952,105340.0,105320.0,0.047474]
[1734490278998,0.4350646,105330.0,105320.0,0.047474]
[1734490279203,0.3938,105330.0,105320.0,0.0887386]
[1734490279511,0.4245,105340.0,105330.0,0.04747]
[1734490279691,0.3922,105340.0,105330.0,0.0887346]
[1734490279881,0.3608,105340.0,105330.0,0.1213346]
[1734490280291,0.37582397,105350.0,105340.0,0.047465]
[1734490280489,0.3608,105350.0,105340.0,0.0887296]
[1734490280688,0.3608,105350.0,105340.0,0.0887286]
[1734490281388,0.3608,105350.0,105340.0,0.047464]
[1734490282294,0.3608,105350.0,105340.0,0.0887286]
[1734490286373,0.3608,105350.0,105340.0,0.10419706]
[1734490287003,0.3613,105370.0,105350.0,0.04746]
[1734490287187,0.3613,105370.0,105360.0,0.1299842]
[1734490287383,0.3613,105370.0,105360.0,0.0887196]
[1734490287587,0.3613,105370.0,105360.0,0.047455]
[1734490287800,0.3608,105370.0,105360.0,0.0887196]
[1734490288877,0.3613,105370.0,105360.0,0.0887196]
[1734490289768,0.3608,105370.0,105360.0,0.0887196]
[1734490289968,0.37626904,105370.0,105360.0,0.0887196]
[1734490290878,0.37676904,105370.0,105360.0,0.0887196]
[1734490291868,0.37626904,105370.0,105360.0,0.0887196]
[1734490292873,0.37676904,105370.0,105360.0,0.0887196]
[1734490293984,0.37626904,105370.0,105360.0,0.0887196]
[1734490294178,0.37626904,105370.0,105360.0,0.047455]
[1734490294383,0.46498564,105370.0,105360.0,0.047455]
[1734490294678,0.42372104,105370.0,105360.0,0.047455]
[1734490294870,0.42422104,105370.0,105360.0,0.047455]
[1734490295270,0.46548564,105370.0,105360.0,0.047455]
[1734490296784,0.46498564,105370.0,105360.0,0.047455]
[1734490297582,0.46498564,105370.0,105350.0,0.047461]
[1734490297880,0.5438216,105360.0,105350.0,0.047461]
[1734490299271,0.5850862,105360.0,105330.0,0.07653889]
[1734490299473,0.7628646,105340.0,105330.0,0.01433889]
[1734490299674,0.047472,105330.0,105320.0,0.047474]
[1734490299873,0.5421366,105330.0,105320.0,0.047474]
[1734490300174,0.5421366,105330.0,105310.0,0.04890295]
[1734490300477,0.3608,105320.0,105310.0,0.09016755]
[1734490301378,0.3608,105320.0,105310.0,0.12286755]
[1734490302081,0.3608,105320.0,105310.0,0.17449839]
[1734490304379,0.3608,105330.0,105310.0,0.47449839]
[1734490304586,0.3608,105330.0,105320.0,0.14247044]
[1734490304876,0.3608,105330.0,105320.0,0.14297044]
[1734490305679,0.3608,105340.0,105330.0,0.047471]
[1734490305880,0.3608,105350.0,105340.0,0.047466]
[1734490307884,0.408261,105350.0,105340.0,0.047466]
[1734490309783,0.47115644,105350.0,105320.0,0.62229857]
[1734490309982,0.3608,105330.0,105320.0,0.66977357]
[1734490310583,0.3608,105330.0,105320.0,0.73266901]
[1734490310783,0.3608,105330.0,105320.0,0.73316901]
[1734490311781,0.093,105340.0,105330.0,0.04747]
[1734490311782,0.3608,105340.0,105330.0,0.04747]
[1734490311981,0.3608,105340.0,105330.0,0.11036544]
[1734490312184,0.3608,105350.0,105340.0,0.047466]
[1734490312382,0.3608,105350.0,105340.0,0.11036144]
[1734490315777,0.3608,105350.0,105340.0,0.057466]
[1734490325105,0.3608,105350.0,105340.0,0.12036144]
[1734490326391,0.51537748,105360.0,105350.0,0.047459]
[1734490326792,0.51587748,105360.0,105350.0,0.047459]
[1734490327201,0.4542,105360.0,105350.0,0.11035444]
[1734490327793,0.4537,105360.0,105350.0,0.11035444]
[1734490327998,0.4233,105360.0,105350.0,0.11035444]
[1734490328701,0.3927,105360.0,105350.0,0.11035444]
[1734490329008,0.3932,105360.0,105350.0,0.11035444]
[1734490329499,0.0324,105360.0,105350.0,0.11035444]
[1734490329899,0.0319,105360.0,105350.0,0.12416489]
[1734490331008,0.0324,105360.0,105350.0,0.12416489]
[1734490331409,0.3932,105360.0,105350.0,0.12416489]
[1734490331993,0.3613,105360.0,105350.0,0.12416489]
[1734490332605,0.0005,105360.0,105350.0,0.12416489]
[1734490332902,0.3608,105370.0,105360.0,0.047455]
[1734490333108,0.3608,105370.0,105360.0,0.18324588]
[1734490333403,0.45422392,105380.0,105360.0,0.18324588]
[1734490333606,0.4528,105380.0,105370.0,0.11034544]
[1734490333805,0.0616,105380.0,105370.0,0.47114544]
[1734490334812,0.36087574,105390.0,105380.0,0.047446]
[1734490335004,0.36087574,105390.0,105380.0,0.11034144]
[1734490335005,7.574e-05,105390.0,105380.0,0.11034144]
[1734490335307,7.574e-05,105390.0,105380.0,0.47114144]
[1734490335795,7.574e-05,105390.0,105380.0,0.50284144]
[1734490335995,7.574e-05,105390.0,105380.0,0.53344144]
[1734490337312,7.574e-05,105390.0,105380.0,0.17264144]
[1734490339409,7.574e-05,105390.0,105380.0,0.14094144]
[1734490339812,0.00057574,105390.0,105380.0,0.14094144]
[1734490340113,0.00057574,105390.0,105380.0,0.50174144]
[1734490340510,0.00057574,105390.0,105380.0,0.14094144]
[1734490340908,0.36137574,105390.0,105380.0,0.047446]
[1734490341506,0.00057574,105390.0,105380.0,0.11034144]
[1734490341905,0.00057574,105390.0,105380.0,0.47114144]
[1734490342106,0.00057574,105390.0,105380.0,0.50184144]
[1734490345116,0.00057574,105390.0,105380.0,0.47114144]
[1734490346810,0.36137574,105390.0,105380.0,0.047446]
[1734490347612,0.36137574,105390.0,105380.0,0.11034144]
[1734490348115,0.00057574,105390.0,105380.0,0.11034144]
[1734490348506,0.00057574,105390.0,105380.0,0.47114144]
[1734490350121,0.00057574,105390.0,105380.0,0.11034144]
[1734490351922,0.36137574,105390.0,105380.0,0.11034144]
[1734490353523,0.36137574,105390.0,105380.0,0.047446]
[1734490353922,0.36087574,105390.0,105380.0,0.11034144]
[1734490354118,7.574e-05,105390.0,105380.0,0.11034144]
[1734490354317,0.36087574,105390.0,105380.0,0.11034144]
[1734490355119,7.574e-05,105390.0,105380.0,0.11034144]
[1734490355920,0.36087574,105390.0,105380.0,0.11034144]
[1734490357423,0.36087574,105390.0,105380.0,0.047446]
[1734490357630,0.40831674,105390.0,105380.0,0.047446]
[1734490359620,0.47121218,105390.0,105360.0,0.0105]
[1734490359925,0.47121218,105390.0,105360.0,0.057455]
[1734490359926,0.3608,105370.0,105360.0,0.057455]
[1734490360428,0.3608,105370.0,105360.0,0.13296045]
[1734490360625,0.3608,105370.0,105360.0,0.057455]
[1734490360828,0.3608,105370.0,105360.0,0.057955]
[1734490361016,0.40825,105370.0,105360.0,0.057955]
[1734490361926,0.40825,105370.0,105360.0,0.057455]
[1734490362832,0.43955,105370.0,105360.0,0.057955]
[1734490363928,0.43955,105370.0,105360.0,0.057455]
[1734490364925,0.43955,105370.0,105360.0,0.057955]
[1734490365124,0.45177699,105370.0,105360.0,0.057955]
[1734490365824,0.45177699,105370.0,105360.0,0.057455]
[1734490366826,0.45177699,105370.0,105360.0,0.057955]
[1734490368932,0.42047699,105370.0,105360.0,0.057955]
[1734490369829,0.42047699,105370.0,105360.0,0.057455]
[1734490370234,0.40825,105370.0,105360.0,0.12035044]
[1734490370936,0.40825,105370.0,105360.0,0.057455]
[1734490377443,0.76905,105370.0,105360.0,0.01]
[1734490382245,0.83194544,105370.0,105360.0,0.01]
[1734490385447,0.047455,105360.0,105350.0,0.00142348]
[1734490385641,0.56405044,105360.0,105350.0,0.01142348]
[1734490385842,0.501155,105360.0,105350.0,0.01142348]
[1734490386446,0.56405044,105360.0,105350.0,0.01142348]
[1734490386651,0.56405044,105360.0,105350.0,0.00142348]
[1734490388346,0.56405044,105360.0,105340.0,0.0005]
[1734490388646,0.47115444,105350.0,105340.0,0.0005]
[1734490388846,0.47115444,105350.0,105330.0,0.047468]
[1734490389050,0.440264,105340.0,105330.0,0.047468]
[1734490390944,0.504664,105340.0,105330.0,0.047468]
[1734490391551,0.047473,105320.0,105310.0,0.110226]
[1734490391747,0.3608,105320.0,105310.0,0.110226]
[1734490392653,0.408273,105320.0,105310.0,0.12213047]
[1734490393844,0.408273,105320.0,105310.0,0.09153047]
[1734490394053,0.408273,105320.0,105310.0,0.047826]
[1734490394249,0.472673,105320.0,105310.0,0.047826]
[1734490394647,0.53556844,105320.0,105310.0,0.00035]
[1734490394851,0.56866844,105320.0,105310.0,0.00035]
[1734490395549,0.505773,105320.0,105310.0,0.00035]
[1734490397163,0.5176404,105320.0,105310.0,0.00035]
[1734490397858,0.58053584,105320.0,105310.0,0.00035]
[1734490400055,0.88053584,105320.0,105310.0,0.00085]
[1734490401563,0.58053584,105320.0,105310.0,0.00085]
[1734490405257,0.58053584,105320.0,105310.0,0.0005]
[1734490405650,0.4845404,105320.0,105310.0,0.0005]
[1734490405855,0.4845404,105320.0,105310.0,0.047977]
[1734490406061,0.54743584,105320.0,105310.0,0.047977]
[1734490407662,0.4845404,105320.0,105310.0,0.047977]
[1734490408963,0.50369478,105320.0,105310.0,0.047977]
[1734490409153,0.56659022,105320.0,105310.0,0.0005]
[1734490409963,0.59789022,105320.0,105310.0,0.0005]
[1734490410966,0.047477,105310.0,105300.0,0.177681]
[1734490411172,0.408277,105310.0,105300.0,0.177681]
[1734490412049,0.408277,105310.0,105300.0,0.178181]
[1734490412256,0.47117244,105310.0,105300.0,0.1005]
[1734490412959,0.47117244,105310.0,105300.0,0.1]
[1734490413360,0.408277,105310.0,105300.0,0.1]
[1734490413556,0.47117244,105310.0,105300.0,0.1]
[1734490413956,0.47117244,105310.0,105300.0,0.1005]
[1734490415167,0.408277,105310.0,105300.0,0.1005]
[1734490415373,0.3608,105310.0,105300.0,0.1005]
[1734490415562,0.3608,105310.0,105300.0,0.147982]
[1734490415757,0.3608,105310.0,105300.0,0.178582]
[1734490415970,0.3608,105310.0,105300.0,0.178082]
[1734490416463,0.3608,105310.0,105300.0,0.209282]
[1734490418866,0.3608,105310.0,105300.0,0.178082]
[1734490419568,0.408277,105310.0,105300.0,0.178082]
[1734490420471,0.408277,105310.0,105300.0,0.147482]
[1734490422061,0.47117244,105310.0,105300.0,0.147482]
[1734490422764,0.47117244,105310.0,105300.0,0.1]
[1734490429971,0.57597729,105310.0,105300.0,0.1]
[1734490431478,0.49089874,105310.0,105300.0,0.1]
[1734490431868,0.91728816,105310.0,105280.0,0.03512468]
[1734490432064,0.85170874,105290.0,105280.0,0.00142468]
[1734490432980,0.85170874,105290.0,105280.0,0.00192468]
[1734490433577,0.81039787,105290.0,105280.0,0.00192468]
[1734490433983,0.83205741,105290.0,105280.0,0.00142468]
[1734490434973,0.83205741,105290.0,105280.0,0.00192468]
[1734490435181,0.769087,105290.0,105280.0,0.00192468]
[1734490435985,0.83205741,105290.0,105280.0,0.04891568]
[1734490437079,0.83205741,105290.0,105280.0,0.04941568]
[1734490437976,0.83205741,105290.0,105280.0,0.04891568]
[1734490438477,0.83205741,105290.0,105280.0,0.00142468]
[1734490438683,0.84364734,105290.0,105280.0,0.00142468]
[1734490439179,0.84364734,105290.0,105280.0,0.00192468]
[1734490439985,0.84364734,105290.0,105280.0,0.00142468]
[1734490440981,0.84364734,105290.0,105280.0,0.00192468]
[1734490442088,0.84364734,105290.0,105270.0,0.047495]
[1734490442277,0.47126141,105280.0,105270.0,0.047495]
[1734490442584,0.440191,105280.0,105270.0,0.047495]
[1734490442974,0.440191,105280.0,105270.0,0.047995]
[1734490443482,0.53386141,105280.0,105270.0,0.0005]
[1734490444182,0.53386141,105280.0,105260.0,0.113709]
[1734490444388,0.53386141,105280.0,105260.0,0.080809]
[1734490444389,0.47126641,105270.0,105260.0,0.080809]
[1734490446387,0.408296,105270.0,105260.0,0.080809]
[1734490447286,0.3927,105280.0,105260.0,0.17527941]
[1734490447491,0.3608,105280.0,105270.0,0.11046641]
[1734490447687,0.3108,105280.0,105270.0,0.14266641]
[1734490448093,0.3608,105290.0,105270.0,0.09567041]
[1734490448287,0.3608,105290.0,105280.0,0.080291]
[1734490451495,0.408287,105290.0,105280.0,0.080291]
[1734490452795,0.3608,105290.0,105280.0,0.080291]
[1734490454484,0.3608,105290.0,105280.0,0.15422943]
[1734490454691,0.3608,105300.0,105290.0,0.047487]
[1734490454989,0.3608,105300.0,105290.0,0.14345741]
[1734490455185,0.00192507,105310.0,105300.0,0.047482]
[1734490455390,0.0005,105310.0,105300.0,0.77125241]
[1734490456100,0.36090106,105320.0,105310.0,0.047478]
[1734490456101,0.00010106,105320.0,105310.0,0.047478]
[1734490456298,0.00010106,105320.0,105310.0,0.17404841]
[1734490456992,0.00010106,105320.0,105310.0,0.111078]
[1734490458499,0.00010106,105320.0,105310.0,0.17404841]
[1734490459794,0.00010106,105320.0,105310.0,0.078078]
[1734490459795,0.36090106,105320.0,105310.0,0.078078]
[1734490460002,0.36140106,105320.0,105310.0,0.078078]
[1734490460597,0.00060106,105320.0,105310.0,0.078078]
[1734490460792,6e-08,105320.0,105310.0,0.1521874]
[1734490461106,6e-08,105320.0,105310.0,0.1835874]
[1734490461702,6e-08,105320.0,105310.0,0.18371009]
[1734490461895,0.36080006,105320.0,105310.0,0.18371009]
[1734490462798,0.36080006,105320.0,105310.0,0.05873968]
[1734490462994,0.53294347,105320.0,105310.0,0.04760069]
[1734490463195,0.53294347,105320.0,105310.0,0.00012269]
[1734490467007,0.04748,105310.0,105290.0,0.047486]
[1734490467303,0.3608,105300.0,105290.0,0.047486]
[1734490468618,0.408282,105300.0,105290.0,0.047486]
[1734490469002,0.769082,105300.0,105290.0,0.047486]
[1734490469203,0.769082,105300.0,105270.0,0.0005]
[1734490469204,1.49818082,105300.0,105270.0,0.0005]
[1734490469506,0.769091,105280.0,105270.0,0.0005]
[1734490470004,0.769091,105280.0,105260.0,0.047499]
[1734490470204,0.3928,105270.0,105260.0,0.047499]
[1734490471301,0.440296,105270.0,105260.0,0.047499]
[1734490474098,0.50326641,105270.0,105230.0,0.42436041]
[1734490474315,0.3608,105250.0,105240.0,0.14337941]
[1734490476714,0.3915,105260.0,105250.0,0.047505]
[1734490481401,0.439,105260.0,105250.0,0.047505]
[1734490482218,0.45004876,105260.0,105250.0,0.047505]
[1734490484413,0.047505,105250.0,105240.0,0.080408]
[1734490484609,0.47127541,105250.0,105240.0,0.047508]
[1734490484910,0.438905,105250.0,105240.0,0.047508]
[1734490485512,0.3914,105250.0,105240.0,0.11047841]
[1734490485822,0.3608,105250.0,105240.0,0.11047841]
[1734490486007,0.3608,105250.0,105240.0,0.047508]
[1734490486509,0.48064976,105260.0,105250.0,0.047505]
[1734490486711,0.3608,105260.0,105250.0,0.14147541]
[1734490486909,0.40836975,105270.0,105260.0,0.047501]
[1734490487114,0.40836975,105270.0,105260.0,0.048001]
[1734490487419,0.47134016,105270.0,105260.0,0.048001]
[1734490487821,0.48208734,105270.0,105260.0,0.058001]
[1734490488020,0.48208734,105270.0,105260.0,0.057501]
[1734490488218,0.50090953,105270.0,105260.0,0.057501]
[1734490488416,0.43793912,105270.0,105260.0,0.057501]
[1734490490614,0.50090953,105270.0,105260.0,0.01]
[1734490494825,0.43793912,105270.0,105260.0,0.01]
[1734490496221,0.50090953,105270.0,105260.0,0.01]
[1734490496721,0.80090953,105270.0,105260.0,0.01]
[1734490496928,0.047501,105260.0,105250.0,0.57630313]
[1734490497229,0.53377141,105260.0,105250.0,0.01]
[1734490497526,0.56457141,105260.0,105250.0,0.01]
[1734490499521,0.501601,105260.0,105250.0,0.01]
[1734490499715,0.4233,105260.0,105250.0,0.01]
[1734490499924,0.4233,105260.0,105250.0,0.057505]
[1734490500127,0.35802085,105260.0,105250.0,0.057505]
[1734490501017,0.35802085,105260.0,105250.0,0.087605]
[1734490501425,0.29552085,105260.0,105250.0,0.087605]
[1734490501627,0.24211442,105260.0,105250.0,0.15057541]
[1734490501817,0.24211442,105260.0,105250.0,0.65390813]
[1734490502018,0.46823912,105270.0,105260.0,0.047501]
[1734490502615,0.40999494,105270.0,105260.0,0.047501]
[1734490506032,7.275e-05,105270.0,105260.0,0.47127141]
[1734490506226,0.0005,105280.0,105270.0,0.047498]
[1734490506426,0.0005,105280.0,105270.0,0.82831149]
[1734490506737,0.0005,105280.0,105270.0,0.83426841]
[1734490507024,0.3608,105300.0,105290.0,0.047489]
[1734490507224,0.3608,105300.0,105290.0,0.04757675]
[1734490507427,0.3608,105300.0,105290.0,0.11054716]
[1734490508634,0.3917,105310.0,105300.0,0.047484]
[1734490508822,0.3917,105310.0,105300.0,0.14253006]
[1734490509824,0.3917,105310.0,105300.0,0.20550047]
[1734490510026,0.3608,105310.0,105300.0,0.11045441]
[1734490510226,0.36092326,105320.0,105310.0,0.04748]
[1734490511228,0.36092326,105320.0,105310.0,0.11045041]
[1734490511534,0.36092326,105320.0,105310.0,0.14375041]
[1734490512429,0.36092326,105320.0,105310.0,0.08078]
[1734490513534,0.36092326,105320.0,105310.0,0.09145229]
[1734490514022,0.36092326,105320.0,105310.0,0.04748]
[1734490516128,0.42389367,105320.0,105300.0,0.047484]
[1734490516329,0.50385141,105310.0,105290.0,0.04757475]
[1734490516535,0.45697041,105300.0,105290.0,0.04757475]
[1734490516831,0.441484,105300.0,105290.0,0.04757475]
[1734490517032,0.441484,105300.0,105290.0,8.775e-05]
[1734490517235,0.441984,105300.0,105290.0,8.775e-05]
[1734490518131,0.441484,105300.0,105290.0,8.775e-05]
[1734490519227,0.441984,105300.0,105290.0,8.775e-05]
[1734490519426,0.50495441,105300.0,105290.0,8.775e-05]
[1734490519836,0.441984,105300.0,105290.0,8.775e-05]
[1734490520238,0.50495441,105300.0,105290.0,8.775e-05]
[1734490520732,0.56792482,105300.0,105290.0,8.775e-05]
[1734490520931,0.047489,105290.0,105280.0,0.00142463]
[1734490521144,0.047495,105280.0,105260.0,0.0475]
[1734490521445,0.7857,105270.0,105260.0,0.0475]
[1734490522243,0.7857,105270.0,105260.0,0.048]
[1734490522430,0.89616841,105270.0,105260.0,0.0005]
[1734490524135,0.89616841,105270.0,105250.0,0.057506]
[1734490524339,0.3608,105260.0,105250.0,0.057506]
[1734490525433,0.3608,105260.0,105250.0,0.12047641]
[1734490525633,0.3608,105260.0,105250.0,0.21187641]
[1734490526446,0.3608,105280.0,105270.0,0.047498]
[1734490529544,0.3608,105280.0,105270.0,0.11046841]
[1734490531851,0.3608,105280.0,105270.0,0.047498]
[1734490533344,0.3608,105280.0,105270.0,0.05802201]
[1734490534045,0.3608,105280.0,105270.0,0.047498]